[Event "Hungarian Rapid-ch 2022"]
[Site "Ajka"]
[Date "2022.07.17"]
[Round "10.12"]
[White "Bodi, Tibor"]
[Black "Kantor, Gergely"]
[Result "0-1"]
[ECO "A06"]
[WhiteElo "2301"]
[BlackElo "2582"]
[Annotator "ChessBase"]
[PlyCount "110"]
[EventDate "2022.07.15"]
[EventType "swiss"]
[EventCountry "HUN"]
[SourceTitle "playchess.com"]
[Source "ChessBase"]
[SourceQuality "1"]
[TimeControl "900+10"]

1. Nf3 {[%emt 0:00:17]} d5 {[%emt 0:00:39]} 2. e3 {[%emt 0:00:15]} g6 {[%emt 0:00:20]} 3. c4 {[%emt 0:00:03]} e6 {[%emt 0:00:02]} 4. d4 {[%emt 0:00:09]} Bg7 {[%emt 0:00:01]} 5. Nc3 {[%emt 0:00:06]} Ne7 {[%emt 0:00:02]} 6. Be2 {[%emt 0:00:11]} O-O {[%emt 0:00:02]} 7. O-O {[%emt 0:00:03]} b6 {[%emt 0:00:10]} 8. b3 {[%emt 0:00:35]} Bb7 {[%emt 0:01:19]} 9. Ba3 {[%emt 0:00:37]} Re8 {[%emt 0:00:03]} 10. Bxe7 {[%emt 0:00:10]} Qxe7 {[%emt 0:00:24]} 11. cxd5 {[%emt 0:00:02]} exd5 {[%emt 0:00:02]} 12. Rc1 {[%emt 0:00:04]} a6 {[%emt 0:00:13]} 13. Ne1 {[%emt 0:00:36]} Qd6 {[%emt 0:00:59]} 14. Nd3 {[%emt 0:00:20]} Nd7 {[%emt 0:00:02]} 15. b4 {[%emt 0:00:44]} h5 {[%emt 0:00:28]} 16. h3 {[%emt 0:01:11]} Re7 {[%emt 0:00:10]} 17. a4 {[%emt 0:02:22]} Rae8 {[%emt 0:00:32]} 18. a5 {[%emt 0:01:01]} b5 {[%emt 0:00:20]} 19. Bf3 {[%emt 0:00:17]} c6 {[%emt 0:00:33]} 20. Rb1 {[%emt 0:02:21]} Bc8 {[%emt 0:00:23]} 21. Ne2 {[%emt 0:01:52]} Nf8 {[%emt 0:01:14]} 22. Nef4 {[%emt 0:01:18]} h4 {[%emt 0:01:03]} 23. Rc1 {[%emt 0:00:08]} g5 {[%emt 0:02:52]} 24. Ne2 {[%emt 0:00:49]} f5 {[%emt 0:00:18]} 25. Nc3 {[%emt 0:01:14]} Nd7 {[%emt 0:00:40]} 26. Nb1 {[%emt 0:01:12]} Nf6 {[%emt 0:00:20]} 27. Ne5 {[%emt 0:00:10]} Rxe5 {[%emt 0:00:03]} 28. dxe5 {[%emt 0:00:02]} Rxe5 {[%emt 0:00:02]} 29. Qd4 {[%emt 0:00:13]} g4 {[%emt 0:00:30]} 30. hxg4 {[%emt 0:00:07]} fxg4 {[%emt 0:00:10]} 31. Be2 {[%emt 0:00:08]} Bd7 {[%emt 0:01:44]} 32. Nd2 {[%emt 0:00:15]} Bh6 {[%emt 0:01:09]} 33. Bd3 {[%emt 0:00:25]} Qe7 {[%emt 0:00:58]} 34. Rce1 {[%emt 0:00:39]} h3 {[%emt 0:02:06]} 35. gxh3 {[%emt 0:00:07]} Rh5 {[%emt 0:00:33]} 36. Kg2 {[%emt 0:00:19]} Bg7 {[%emt 0:00:23]} 37. Qf4 {[%emt 0:00:07]} Rxh3 {[%emt 0:00:13]} 38. Rh1 {[%emt 0:00:08]} Nh5 {[%emt 0:00:01]} 39. Qb8+ {[%emt 0:00:03]} Kf7 {[%emt 0:00:01]} 40. Rxh3 {[%emt 0:00:13]} gxh3+ {[%emt 0:00:02]} 41. Kh1 {[%emt 0:00:02]} Qxb4 {[%emt 0:00:17]} 42. Rg1 {[%emt 0:00:24]} h2 {[%emt 0:00:27]} 43. Qxh2 {[%emt 0:00:05]} Nf6 {[%emt 0:00:07]} 44. Nf3 {[%emt 0:00:05]} Bf8 {[%emt 0:00:18]} 45. Ne5+ {[%emt 0:00:14]} Ke8 {[%emt 0:00:00]} 46. Qh8 {[%emt 0:00:17]} Qe7 {[%emt 0:00:19]} 47. Ng6 {[%emt 0:00:13]} Qg7 {[%emt 0:00:03]} 48. Qh2 {[%emt 0:00:14]} Qh6 {[%emt 0:00:11]} 49. Nh4 {[%emt 0:00:24]} Ng4 {[%emt 0:00:08]} 50. Qb8+ {[%emt 0:00:28]} Kf7 {[%emt 0:00:12]} 51. Qd8 {[%emt 0:00:06]} Be7 {[%emt 0:00:03]} 52. Qxd7 {[%emt 0:00:13]} Qxh4+ {[%emt 0:00:01]} 53. Kg2 {[%emt 0:00:03]} Qxf2+ {[%emt 0:00:06]} 54. Kh3 {[%emt 0:00:01]} Qxg1 {[%emt 0:00:25]} 55. Qxc6 {[%emt 0:00:27]} Nf2# {[%emt 0:00:00]} 0-1

[Event "Hungarian Rapid-ch 2022"]
[Site "Ajka"]
[Date "2022.07.17"]
[Round "10.13"]
[White "Udvardi, Zalan"]
[Black "Korpa, Bence"]
[Result "0-1"]
[ECO "B03"]
[WhiteElo "2310"]
[BlackElo "2537"]
[Annotator "ChessBase"]
[PlyCount "46"]
[EventDate "2022.07.15"]
[EventType "swiss"]
[EventCountry "HUN"]
[SourceTitle "playchess.com"]
[Source "ChessBase"]
[SourceQuality "1"]
[TimeControl "900+10"]

1. e4 {[%emt 0:00:12]} Nf6 {[%emt 0:00:16]} 2. e5 {[%emt 0:00:05]} Nd5 {[%emt 0:00:02]} 3. d4 {[%emt 0:00:04]} d6 {[%emt 0:00:03]} 4. c4 {[%emt 0:00:04]} Nb6 {[%emt 0:00:03]} 5. exd6 {[%emt 0:00:03]} exd6 {[%emt 0:00:03]} 6. Nc3 {[%emt 0:00:31]} Be7 {[%emt 0:00:04]} 7. Bd3 {[%emt 0:00:10]} O-O {[%emt 0:00:12]} 8. Nge2 {[%emt 0:00:14]} Nc6 {[%emt 0:00:05]} 9. O-O {[%emt 0:01:43]} Bf6 {[%emt 0:00:45]} 10. Be3 {[%emt 0:00:34]} Nb4 {[%emt 0:00:16]} 11. Rc1 {[%emt 0:00:38]} d5 {[%emt 0:00:40]} 12. b3 {[%emt 0:01:29]} Nxd3 {[%emt 0:00:56]} 13. Qxd3 {[%emt 0:00:03]} c6 {[%emt 0:00:58]} 14. c5 {[%emt 0:01:11]} Nd7 {[%emt 0:00:03]} 15. Ng3 {[%emt 0:00:02]} g6 {[%emt 0:00:07]} 16. Bh6 {[%emt 0:02:07]} Re8 {[%emt 0:00:04]} 17. f4 {[%emt 0:00:40]} b6 {[%emt 0:00:13]} 18. b4 {[%emt 0:00:35]} a5 {[%emt 0:00:27]} 19. b5 {[%emt 0:01:33]} bxc5 {[%emt 0:00:13]} 20. bxc6 {[%emt 0:00:03]} Bxd4+ {[%emt 0:00:09]} 21. Kh1 {[%emt 0:00:01]} Nf6 {[%emt 0:00:41]} 22. Rfe1 {[%emt 0:00:41]} Ng4 {[%emt 0:00:27]} 23. Rxe8+ {[%emt 0:02:06]} Qxe8 {[%emt 0:00:04]} 0-1

[Event "Hungarian Rapid-ch 2022"]
[Site "Ajka"]
[Date "2022.07.17"]
[Round "10.14"]
[White "Lizak, Peter"]
[Black "Juhasz, Zoltan"]
[Result "1-0"]
[ECO "A45"]
[WhiteElo "2400"]
[BlackElo "1985"]
[Annotator "ChessBase"]
[PlyCount "55"]
[EventDate "2022.07.15"]
[EventType "swiss"]
[EventCountry "HUN"]
[SourceTitle "playchess.com"]
[Source "ChessBase"]
[SourceQuality "1"]
[TimeControl "900+10"]

1. d4 {[%emt 0:00:12]} Nf6 {[%emt 0:00:14]} 2. Nc3 {[%emt 0:00:02]} d5 {[%emt 0:00:15]} 3. Bf4 {[%emt 0:00:03]} c6 {[%emt 0:01:38]} 4. e3 {[%emt 0:00:10]} Bf5 {[%emt 0:00:36]} 5. f3 {[%emt 0:00:04]} h5 {[%emt 0:01:12]} 6. Bd3 {[%emt 0:00:28]} Bxd3 {[%emt 0:00:17]} 7. Qxd3 {[%emt 0:00:02]} Na6 {[%emt 0:02:17]} 8. Nge2 {[%emt 0:02:22]} e6 {[%emt 0:00:20]} 9. e4 {[%emt 0:00:29]} g6 {[%emt 0:01:33]} 10. Be5 {[%emt 0:03:25]} Bg7 {[%emt 0:01:21]} 11. Nf4 {[%emt 0:02:33]} O-O {[%emt 0:01:14]} 12. O-O {[%emt 0:01:22]} Nh7 {[%emt 0:01:54]} 13. Bxg7 {[%emt 0:00:11]} Kxg7 {[%emt 0:00:01]} 14. Nce2 {[%emt 0:00:17]} Nc7 {[%emt 0:01:53]} 15. c3 {[%emt 0:00:17]} Nf6 {[%emt 0:00:26]} 16. e5 {[%emt 0:00:13]} Nd7 {[%emt 0:00:38]} 17. Ng3 {[%emt 0:00:02]} Qg5 {[%emt 0:00:57]} 18. Nh3 {[%emt 0:00:09]} Qe7 {[%emt 0:00:32]} 19. f4 {[%emt 0:00:26]} c5 {[%emt 0:00:29]} 20. Rf3 {[%emt 0:01:12]} c4 {[%emt 0:00:11]} 21. Qe3 {[%emt 0:00:11]} f5 {[%emt 0:00:07]} 22. exf6+ {[%emt 0:00:07]} Rxf6 {[%emt 0:00:24]} 23. f5 {[%emt 0:00:15]} h4 {[%emt 0:00:19]} 24. Ne2 {[%emt 0:01:25]} Rxf5 {[%emt 0:00:02]} 25. Rxf5 {[%emt 0:00:03]} gxf5 {[%emt 0:00:01]} 26. Nef4 {[%emt 0:00:06]} Nf6 {[%emt 0:00:10]} 27. Qe5 {[%emt 0:00:05]} Rg8 {[%emt 0:00:18]} 28. Qxc7 {[%emt 0:00:05]} 1-0

[Event "Hungarian Rapid-ch 2022"]
[Site "Ajka"]
[Date "2022.07.17"]
[Round "10.15"]
[White "Szamoskozi, Gabor"]
[Black "Tolnai, Tibor"]
[Result "1/2-1/2"]
[ECO "B57"]
[WhiteElo "2243"]
[BlackElo "2433"]
[Annotator "ChessBase"]
[PlyCount "131"]
[EventDate "2022.07.15"]
[EventType "swiss"]
[EventCountry "HUN"]
[SourceTitle "playchess.com"]
[Source "ChessBase"]
[SourceQuality "1"]
[TimeControl "900+10"]

1. e4 {[%emt 0:00:13]} c5 {[%emt 0:00:14]} 2. Nf3 {[%emt 0:00:04]} d6 {[%emt 0:00:03]} 3. d4 {[%emt 0:00:14]} cxd4 {[%emt 0:00:02]} 4. Nxd4 {[%emt 0:00:03]} Nf6 {[%emt 0:00:02]} 5. Nc3 {[%emt 0:00:04]} Nc6 {[%emt 0:00:02]} 6. Bc4 {[%emt 0:03:13]} Qb6 {[%emt 0:00:05]} 7. Nxc6 {[%emt 0:00:44]} bxc6 {[%emt 0:00:04]} 8. O-O {[%emt 0:00:04]} e6 {[%emt 0:01:38]} 9. Bb3 {[%emt 0:00:08]} Be7 {[%emt 0:00:07]} 10. Be3 {[%emt 0:00:14]} Qc7 {[%emt 0:00:02]} 11. h3 {[%emt 0:01:42]} O-O {[%emt 0:00:08]} 12. f4 {[%emt 0:00:28]} d5 {[%emt 0:02:45]} 13. e5 {[%emt 0:00:30]} Nd7 {[%emt 0:00:05]} 14. Ne2 {[%emt 0:00:18]} Nc5 {[%emt 0:01:50]} 15. c3 {[%emt 0:00:39]} Nxb3 {[%emt 0:00:14]} 16. Qxb3 {[%emt 0:00:40]} c5 {[%emt 0:00:29]} 17. Qc2 {[%emt 0:00:32]} a5 {[%emt 0:00:53]} 18. Rae1 {[%emt 0:01:51]} g6 {[%emt 0:00:32]} 19. Kh2 {[%emt 0:00:17]} Rb8 {[%emt 0:00:07]} 20. Ng1 {[%emt 0:00:08]} Qb6 {[%emt 0:00:24]} 21. Rf2 {[%emt 0:00:21]} d4 {[%emt 0:00:44]} 22. Bc1 {[%emt 0:00:16]} Rd8 {[%emt 0:02:04]} 23. Rd1 {[%emt 0:00:34]} Ba6 {[%emt 0:01:00]} 24. c4 {[%emt 0:02:31]} Qb4 {[%emt 0:00:29]} 25. Bd2 {[%emt 0:00:11]} Qxb2 {[%emt 0:01:17]} 26. Bxa5 {[%emt 0:00:02]} Qxc2 {[%emt 0:00:02]} 27. Rxc2 {[%emt 0:00:02]} Rd7 {[%emt 0:00:15]} 28. Nf3 {[%emt 0:00:11]} Ra7 {[%emt 0:00:16]} 29. Be1 {[%emt 0:00:21]} Bb7 {[%emt 0:00:49]} 30. Rb1 {[%emt 0:00:02]} Rba8 {[%emt 0:00:02]} 31. Nd2 {[%emt 0:00:26]} Bc6 {[%emt 0:00:35]} 32. Rb6 {[%emt 0:00:10]} Be8 {[%emt 0:00:02]} 33. Rbb2 {[%emt 0:00:10]} h5 {[%emt 0:00:52]} 34. Ne4 {[%emt 0:00:05]} Bc6 {[%emt 0:00:17]} 35. Nd6 {[%emt 0:00:42]} Ra6 {[%emt 0:00:52]} 36. Rd2 {[%emt 0:01:02]} Bxd6 {[%emt 0:00:11]} 37. exd6 {[%emt 0:00:01]} Bd7 {[%emt 0:00:01]} 38. Bh4 {[%emt 0:00:13]} Rxd6 {[%emt 0:00:04]} 39. Be7 {[%emt 0:00:15]} Rc6 {[%emt 0:00:02]} 40. Rb7 {[%emt 0:00:02]} Be8 {[%emt 0:00:28]} 41. Kg3 {[%emt 0:00:15]} Kg7 {[%emt 0:00:05]} 42. Rdb2 {[%emt 0:00:09]} d3 {[%emt 0:00:52]} 43. Kf2 {[%emt 0:00:08]} Rca6 {[%emt 0:00:09]} 44. Bxc5 {[%emt 0:00:11]} Rxa2 {[%emt 0:00:10]} 45. Bd4+ {[%emt 0:00:06]} Kh6 {[%emt 0:00:07]} 46. Ke3 {[%emt 0:00:06]} g5 {[%emt 0:00:07]} 47. fxg5+ {[%emt 0:00:04]} Kxg5 {[%emt 0:00:01]} 48. Kxd3 {[%emt 0:00:06]} Kg6 {[%emt 0:00:05]} 49. Rxa2 {[%emt 0:00:17]} Rxa2 {[%emt 0:00:02]} 50. Rb2 {[%emt 0:00:10]} Ra3+ {[%emt 0:00:01]} 51. Bc3 {[%emt 0:00:10]} Bc6 {[%emt 0:00:02]} 52. g3 {[%emt 0:00:03]} Ra4 {[%emt 0:00:55]} 53. Rf2 {[%emt 0:00:05]} f5 {[%emt 0:00:02]} 54. Be5 {[%emt 0:00:21]} Ra3+ {[%emt 0:00:31]} 55. Kd4 {[%emt 0:00:02]} h4 {[%emt 0:00:01]} 56. gxh4 {[%emt 0:00:22]} Rxh3 {[%emt 0:00:01]} 57. Kc5 {[%emt 0:00:10]} Be4 {[%emt 0:00:21]} 58. Kd6 {[%emt 0:00:10]} Kf7 {[%emt 0:00:05]} 59. Rh2 {[%emt 0:00:07]} Rd3+ {[%emt 0:00:02]} 60. Kc5 {[%emt 0:00:05]} Rd1 {[%emt 0:00:59]} 61. h5 {[%emt 0:00:22]} Rh1 {[%emt 0:00:03]} 62. Rxh1 {[%emt 0:00:17]} Bxh1 {[%emt 0:00:01]} 63. h6 {[%emt 0:00:03]} Kg6 {[%emt 0:00:01]} 64. Bf4 {[%emt 0:00:03]} e5 {[%emt 0:00:02]} 65. Bxe5 {[%emt 0:00:02]} Kxh6 66. Bf4+ 1/2-1/2

[Event "Hungarian Rapid-ch 2022"]
[Site "Ajka"]
[Date "2022.07.17"]
[Round "10.16"]
[White "Krstulovic, Alex"]
[Black "Gyenes, Mate"]
[Result "1-0"]
[ECO "A48"]
[WhiteElo "2413"]
[BlackElo "2048"]
[Annotator "ChessBase"]
[PlyCount "133"]
[EventDate "2022.07.15"]
[EventType "swiss"]
[EventCountry "HUN"]
[SourceTitle "playchess.com"]
[Source "ChessBase"]
[SourceQuality "1"]
[TimeControl "900+10"]

1. d4 {[%emt 0:00:15]} Nf6 {[%emt 0:00:15]} 2. Nf3 {[%emt 0:00:01]} g6 {[%emt 0:00:01]} 3. c4 {[%emt 0:00:01]} Bg7 {[%emt 0:00:01]} 4. Nc3 {[%emt 0:00:01]} d5 {[%emt 0:00:01]} 5. h4 {[%emt 0:00:01]} c6 {[%emt 0:00:02]} 6. cxd5 {[%emt 0:00:03]} cxd5 {[%emt 0:00:04]} 7. Bf4 {[%emt 0:00:01]} Nc6 {[%emt 0:00:14]} 8. e3 {[%emt 0:00:01]} Bg4 {[%emt 0:00:06]} 9. Qb3 {[%emt 0:00:03]} Qd7 {[%emt 0:02:21]} 10. Ne5 {[%emt 0:00:05]} Qc8 {[%emt 0:01:04]} 11. Nxg4 {[%emt 0:00:09]} Nxg4 {[%emt 0:00:28]} 12. Nxd5 {[%emt 0:00:02]} O-O {[%emt 0:00:59]} 13. Rc1 {[%emt 0:00:20]} Qd7 {[%emt 0:00:19]} 14. Be2 {[%emt 0:00:10]} e5 {[%emt 0:00:17]} 15. dxe5 {[%emt 0:00:25]} Ngxe5 {[%emt 0:00:02]} 16. O-O {[%emt 0:00:15]} h5 {[%emt 0:00:37]} 17. Rfd1 {[%emt 0:00:02]} Qe6 {[%emt 0:01:35]} 18. Rd2 {[%emt 0:03:49]} Rfd8 {[%emt 0:03:10]} 19. Rcd1 {[%emt 0:00:32]} Rd7 {[%emt 0:00:27]} 20. Bb5 {[%emt 0:01:40]} Rad8 {[%emt 0:00:32]} 21. Bg5 {[%emt 0:00:20]} Rc8 {[%emt 0:05:14]} 22. Nf6+ {[%emt 0:00:19]} Bxf6 {[%emt 0:00:20]} 23. Qxe6 {[%emt 0:00:07]} fxe6 {[%emt 0:00:13]} 24. Bxf6 {[%emt 0:00:20]} Rxd2 {[%emt 0:00:05]} 25. Rxd2 {[%emt 0:00:02]} Kf7 {[%emt 0:00:01]} 26. Bg5 {[%emt 0:00:01]} Rc7 {[%emt 0:00:13]} 27. Bf4 {[%emt 0:00:22]} Kf6 {[%emt 0:00:15]} 28. f3 {[%emt 0:00:19]} a6 {[%emt 0:00:05]} 29. Be2 {[%emt 0:00:06]} Nb4 {[%emt 0:00:09]} 30. a3 {[%emt 0:00:30]} Nd5 {[%emt 0:00:07]} 31. Bg5+ {[%emt 0:00:01]} Kf7 {[%emt 0:00:01]} 32. e4 {[%emt 0:00:01]} Nb6 {[%emt 0:00:06]} 33. Bf4 {[%emt 0:00:02]} Kf6 {[%emt 0:00:08]} 34. Kf2 {[%emt 0:00:12]} Nbd7 {[%emt 0:00:46]} 35. Bg5+ {[%emt 0:00:46]} Kf7 {[%emt 0:00:01]} 36. f4 {[%emt 0:00:02]} Nc5 {[%emt 0:00:32]} 37. fxe5 {[%emt 0:00:18]} Nxe4+ {[%emt 0:00:01]} 38. Ke3 {[%emt 0:00:03]} Nxd2 {[%emt 0:00:02]} 39. Kxd2 {[%emt 0:00:03]} Rc5 {[%emt 0:00:01]} 40. Bf4 {[%emt 0:00:24]} Rd5+ {[%emt 0:00:03]} 41. Ke3 {[%emt 0:00:01]} Rd7 {[%emt 0:00:03]} 42. Bf3 {[%emt 0:00:07]} Rc7 {[%emt 0:00:04]} 43. Be4 {[%emt 0:00:01]} b6 {[%emt 0:00:09]} 44. Bd3 {[%emt 0:00:13]} b5 {[%emt 0:00:14]} 45. Ke4 {[%emt 0:00:09]} Ke7 {[%emt 0:00:06]} 46. Bg5+ {[%emt 0:00:01]} Kf7 {[%emt 0:00:05]} 47. Bd2 {[%emt 0:00:02]} Ke7 {[%emt 0:00:04]} 48. Bb4+ {[%emt 0:00:01]} Kf7 {[%emt 0:00:01]} 49. Kf4 {[%emt 0:00:12]} Rd7 {[%emt 0:00:34]} 50. Bd6 {[%emt 0:00:02]} Kg7 {[%emt 0:00:19]} 51. Kg5 {[%emt 0:00:19]} Rf7 {[%emt 0:00:01]} 52. Bxg6 {[%emt 0:00:03]} Rf2 {[%emt 0:00:01]} 53. Bxh5 {[%emt 0:00:10]} Rxg2+ {[%emt 0:00:13]} 54. Bg4 {[%emt 0:00:01]} Kf7 {[%emt 0:00:08]} 55. b4 {[%emt 0:00:12]} Rg3 {[%emt 0:00:03]} 56. h5 {[%emt 0:00:02]} Rxa3 {[%emt 0:00:10]} 57. h6 {[%emt 0:00:01]} Ra1 {[%emt 0:00:39]} 58. Bh5+ {[%emt 0:00:14]} Kg8 {[%emt 0:00:12]} 59. Bc5 {[%emt 0:00:17]} Rf1 {[%emt 0:00:33]} 60. Bg6 {[%emt 0:00:02]} Rf3 {[%emt 0:00:07]} 61. Be7 {[%emt 0:00:21]} Rg3+ {[%emt 0:00:24]} 62. Kf6 {[%emt 0:00:02]} Rh3 {[%emt 0:00:09]} 63. h7+ {[%emt 0:00:02]} Kh8 {[%emt 0:00:01]} 64. Kxe6 {[%emt 0:00:02]} Rf3 {[%emt 0:00:06]} 65. Bf6+ {[%emt 0:00:04]} Rxf6+ {[%emt 0:00:02]} 66. Kxf6 {[%emt 0:00:03]} a5 {[%emt 0:00:00]} 67. e6 {[%emt 0:00:02]} 1-0

[Event "Hungarian Rapid-ch 2022"]
[Site "Ajka"]
[Date "2022.07.17"]
[Round "10.17"]
[White "Deak, Sandor"]
[Black "Papp, Levente"]
[Result "0-1"]
[ECO "E10"]
[WhiteElo "2264"]
[BlackElo "2394"]
[Annotator "ChessBase"]
[PlyCount "28"]
[EventDate "2022.07.15"]
[EventType "swiss"]
[EventCountry "HUN"]
[SourceTitle "playchess.com"]
[Source "ChessBase"]
[SourceQuality "1"]
[TimeControl "900+10"]

1. d4 {[%emt 0:00:15]} Nf6 {[%emt 0:00:16]} 2. c4 {[%emt 0:00:03]} e6 {[%emt 0:00:06]} 3. Nf3 {[%emt 0:00:20]} c5 {[%emt 0:00:02]} 4. d5 {[%emt 0:00:15]} b5 {[%emt 0:00:03]} 5. dxe6 {[%emt 0:04:19]} fxe6 {[%emt 0:00:01]} 6. cxb5 {[%emt 0:00:00]} d5 {[%emt 0:00:02]} 7. e3 {[%emt 0:02:10]} Bd6 {[%emt 0:00:07]} 8. Nc3 {[%emt 0:00:01]} O-O {[%emt 0:00:06]} 9. Be2 {[%emt 0:00:14]} Bb7 {[%emt 0:00:13]} 10. Qc2 {[%emt 0:01:02]} Nbd7 {[%emt 0:00:18]} 11. O-O {[%emt 0:04:17]} Qe7 {[%emt 0:00:01]} 12. Rd1 {[%emt 0:01:53]} Rac8 {[%emt 0:00:30]} 13. b3 {[%emt 0:00:19]} Ne5 {[%emt 0:00:11]} 14. Bb2 {[%emt 0:00:17]} d4 {[%emt 0:00:41]} 0-1

[Event "Hungarian Rapid-ch 2022"]
[Site "Ajka"]
[Date "2022.07.17"]
[Round "10.18"]
[White "Hoang, Thanh Trang"]
[Black "Kolimar, Kristof Pal"]
[Result "1-0"]
[ECO "D04"]
[WhiteElo "2376"]
[BlackElo "2160"]
[Annotator "ChessBase"]
[PlyCount "71"]
[EventDate "2022.07.15"]
[EventType "swiss"]
[EventCountry "HUN"]
[SourceTitle "playchess.com"]
[Source "ChessBase"]
[SourceQuality "1"]
[TimeControl "900+10"]

1. d4 {[%emt 0:00:21]} d5 {[%emt 0:00:15]} 2. Nf3 {[%emt 0:00:05]} Nf6 {[%emt 0:00:02]} 3. e3 {[%emt 0:00:08]} c5 {[%emt 0:00:02]} 4. Nbd2 {[%emt 0:00:24]} e6 {[%emt 0:00:03]} 5. Bd3 {[%emt 0:00:37]} Nc6 {[%emt 0:00:03]} 6. c3 {[%emt 0:00:37]} Bd6 {[%emt 0:00:02]} 7. dxc5 {[%emt 0:00:28]} Bxc5 {[%emt 0:00:01]} 8. b4 {[%emt 0:00:11]} Bd6 {[%emt 0:01:12]} 9. O-O {[%emt 0:00:15]} a5 {[%emt 0:01:01]} 10. b5 {[%emt 0:00:43]} Ne5 {[%emt 0:00:17]} 11. Nxe5 {[%emt 0:00:51]} Bxe5 {[%emt 0:00:02]} 12. Bb2 {[%emt 0:00:07]} O-O {[%emt 0:04:30]} 13. Nf3 {[%emt 0:00:34]} Bc7 {[%emt 0:00:34]} 14. c4 {[%emt 0:00:43]} dxc4 {[%emt 0:01:25]} 15. Bxc4 {[%emt 0:00:13]} Qe7 {[%emt 0:00:06]} 16. Qa4 {[%emt 0:01:54]} e5 {[%emt 0:01:22]} 17. Rfd1 {[%emt 0:02:37]} Ne8 {[%emt 0:03:41]} 18. Bd5 {[%emt 0:01:24]} Bd7 {[%emt 0:00:47]} 19. Bxb7 {[%emt 0:01:44]} Rb8 {[%emt 0:00:01]} 20. Ba3 {[%emt 0:00:03]} Bd6 {[%emt 0:00:06]} 21. Bxd6 {[%emt 0:00:17]} Nxd6 {[%emt 0:00:01]} 22. Bc6 {[%emt 0:00:03]} e4 {[%emt 0:02:02]} 23. Nd4 {[%emt 0:00:32]} Bg4 {[%emt 0:00:03]} 24. Rdc1 {[%emt 0:00:44]} Qg5 {[%emt 0:00:26]} 25. Kh1 {[%emt 0:00:52]} Qh4 {[%emt 0:00:34]} 26. Rc2 {[%emt 0:00:21]} f5 {[%emt 0:00:15]} 27. f3 {[%emt 0:02:00]} exf3 {[%emt 0:00:13]} 28. Nxf3 {[%emt 0:00:11]} Qh5 {[%emt 0:00:02]} 29. Qf4 {[%emt 0:00:10]} Ne4 {[%emt 0:00:29]} 30. a4 {[%emt 0:00:27]} Rbd8 {[%emt 0:00:08]} 31. Nd4 {[%emt 0:00:28]} Rf6 {[%emt 0:00:21]} 32. Qc7 {[%emt 0:00:02]} Rdf8 {[%emt 0:00:01]} 33. Bd5+ {[%emt 0:00:04]} Kh8 {[%emt 0:00:00]} 34. Rf1 {[%emt 0:00:08]} Rh6 {[%emt 0:00:06]} 35. Bxe4 {[%emt 0:00:04]} Qxh2+ {[%emt 0:00:02]} 36. Qxh2 {[%emt 0:00:01]} 1-0

[Event "Hungarian Rapid-ch 2022"]
[Site "Ajka"]
[Date "2022.07.17"]
[Round "10.19"]
[White "Miszler, Levente"]
[Black "Straubinger, Daniel"]
[Result "1/2-1/2"]
[ECO "D43"]
[WhiteElo "2243"]
[BlackElo "2349"]
[Annotator "ChessBase"]
[PlyCount "48"]
[EventDate "2022.07.15"]
[EventType "swiss"]
[EventCountry "HUN"]
[SourceTitle "playchess.com"]
[Source "ChessBase"]
[SourceQuality "1"]
[TimeControl "900+10"]

1. d4 {[%emt 0:00:12]} d5 {[%emt 0:00:30]} 2. c4 {[%emt 0:00:03]} c6 {[%emt 0:00:11]} 3. Nf3 {[%emt 0:00:03]} Nf6 {[%emt 0:00:18]} 4. Nc3 {[%emt 0:00:03]} e6 {[%emt 0:00:48]} 5. g3 {[%emt 0:00:03]} dxc4 {[%emt 0:00:29]} 6. Bg2 {[%emt 0:00:03]} b5 {[%emt 0:00:17]} 7. O-O {[%emt 0:00:56]} Bb7 {[%emt 0:00:09]} 8. Ne5 {[%emt 0:02:38]} a6 {[%emt 0:00:02]} 9. a4 {[%emt 0:00:38]} Qc8 {[%emt 0:00:40]} 10. e4 {[%emt 0:00:22]} Nbd7 {[%emt 0:00:57]} 11. Bf4 {[%emt 0:01:21]} Nxe5 {[%emt 0:01:55]} 12. Bxe5 {[%emt 0:00:17]} Nd7 {[%emt 0:00:07]} 13. Bf4 {[%emt 0:00:06]} Be7 {[%emt 0:00:27]} 14. d5 {[%emt 0:00:28]} e5 {[%emt 0:00:51]} 15. Be3 {[%emt 0:01:13]} O-O {[%emt 0:00:29]} 16. Bh3 {[%emt 0:00:42]} Rd8 {[%emt 0:00:09]} 17. f4 {[%emt 0:00:36]} Qc7 {[%emt 0:01:48]} 18. Qf3 {[%emt 0:00:59]} cxd5 {[%emt 0:02:06]} 19. Nxd5 {[%emt 0:01:34]} Bxd5 {[%emt 0:00:03]} 20. exd5 {[%emt 0:00:02]} e4 {[%emt 0:00:02]} 21. Qxe4 {[%emt 0:01:08]} Nf6 {[%emt 0:00:01]} 22. Qf3 {[%emt 0:00:05]} Nxd5 {[%emt 0:00:07]} 23. Bf2 {[%emt 0:00:04]} Bc5 {[%emt 0:00:21]} 24. axb5 {[%emt 0:00:18]} Nb4 {[%emt 0:01:43]} 1/2-1/2

[Event "Hungarian Rapid-ch 2022"]
[Site "Ajka"]
[Date "2022.07.17"]
[Round "10.20"]
[White "Lakos, Nikoletta"]
[Black "Tancsa, Tamas"]
[Result "1/2-1/2"]
[ECO "C44"]
[WhiteElo "2203"]
[BlackElo "2103"]
[Annotator "ChessBase"]
[PlyCount "69"]
[EventDate "2022.07.15"]
[EventType "swiss"]
[EventCountry "HUN"]
[SourceTitle "playchess.com"]
[Source "ChessBase"]
[SourceQuality "1"]
[TimeControl "900+10"]

1. e4 {[%emt 0:00:13]} e5 {[%emt 0:00:12]} 2. Nf3 {[%emt 0:00:08]} Nc6 {[%emt 0:00:01]} 3. Be2 {[%emt 0:00:02]} Nf6 {[%emt 0:00:06]} 4. d3 {[%emt 0:00:02]} d5 {[%emt 0:03:31]} 5. Nbd2 {[%emt 0:00:04]} Bd6 {[%emt 0:00:34]} 6. c3 {[%emt 0:01:05]} O-O {[%emt 0:00:47]} 7. O-O {[%emt 0:00:19]} Ne7 {[%emt 0:00:07]} 8. Re1 {[%emt 0:04:23]} Ng6 {[%emt 0:00:03]} 9. Bf1 {[%emt 0:02:25]} c6 {[%emt 0:00:08]} 10. Qc2 {[%emt 0:04:14]} Re8 {[%emt 0:00:42]} 11. b3 {[%emt 0:00:57]} h6 {[%emt 0:01:05]} 12. a3 {[%emt 0:00:15]} Bf8 {[%emt 0:04:18]} 13. b4 {[%emt 0:00:06]} Nh7 {[%emt 0:01:22]} 14. Bb2 {[%emt 0:01:42]} f5 {[%emt 0:00:20]} 15. g3 {[%emt 0:00:48]} Qf6 {[%emt 0:01:28]} 16. Bg2 {[%emt 0:00:18]} Kh8 {[%emt 0:01:18]} 17. c4 {[%emt 0:00:06]} d4 {[%emt 0:00:10]} 18. exf5 {[%emt 0:00:04]} Bxf5 {[%emt 0:00:01]} 19. Ne4 {[%emt 0:00:08]} Bxe4 {[%emt 0:00:58]} 20. Rxe4 {[%emt 0:00:01]} Qf7 {[%emt 0:00:01]} 21. Rae1 {[%emt 0:00:21]} Bd6 {[%emt 0:00:07]} 22. R4e2 {[%emt 0:00:39]} Rac8 {[%emt 0:00:18]} 23. Nd2 {[%emt 0:00:03]} Nf6 {[%emt 0:00:21]} 24. Ne4 {[%emt 0:00:12]} Nxe4 {[%emt 0:00:04]} 25. Bxe4 {[%emt 0:00:01]} Nf8 {[%emt 0:00:07]} 26. Bc1 Nh7 {[%emt 0:00:12]} 27. Bxh7 {[%emt 0:00:34]} Kxh7 {[%emt 0:00:02]} 28. Re4 {[%emt 0:00:04]} Rf8 {[%emt 0:00:17]} 29. Qe2 {[%emt 0:00:17]} Qf3 {[%emt 0:00:03]} 30. Rd1 {[%emt 0:00:27]} c5 {[%emt 0:00:22]} 31. b5 {[%emt 0:00:01]} Qxe2 {[%emt 0:00:22]} 32. Rxe2 {[%emt 0:00:01]} Rf3 {[%emt 0:00:01]} 33. Kg2 {[%emt 0:00:14]} Rcf8 {[%emt 0:00:00]} 34. a4 {[%emt 0:00:06]} b6 {[%emt 0:00:01]} 35. h3 {[%emt 0:00:15]} 1/2-1/2